[Event "Titled Tuesday Blitz November 08 Early 2022"]
[White "Remizov, Yaroslav"]
[Black "Perez Gormaz, Matias"]
[WhiteFideId "34134015"]
[BlackFideId "3406342"]
[WhiteElo "2414"]
[BlackElo "2341"]
[Result "0-1"]
[Round "08"]
[TimeControl "180+1"]
[Date "2022.11.08"]
[WhiteClock "0:00:03"]
[BlackClock "0:00:05"]

1. e4 {[%clk 0:03:00]}  c5 {[%clk 0:02:57]} 2. c3 {[%clk 0:02:59]}  Nf6 {[%clk 0:02:53]} 3. e5 {[%clk 0:02:59]}  Nd5 {[%clk 0:02:53]} 4. d4 {[%clk 0:02:59]}  cxd4 {[%clk 0:02:54]} 5. Nf3 {[%clk 0:02:57]}  d6 {[%clk 0:02:44]} 6. cxd4 {[%clk 0:02:51]}  dxe5 {[%clk 0:02:38]} 7. Nxe5 {[%clk 0:02:44]}  Nc6 {[%clk 0:02:33]} 8. Nxc6 {[%clk 0:02:39]}  bxc6 {[%clk 0:02:33]} 9. Bd3 {[%clk 0:02:37]}  g6 {[%clk 0:02:33]} 10. O-O {[%clk 0:02:28]}  Bg7 {[%clk 0:02:33]} 11. Be4 {[%clk 0:02:24]}  O-O {[%clk 0:02:32]} 12. Nc3 {[%clk 0:02:23]}  Rb8 {[%clk 0:02:31]} 13. Re1 {[%clk 0:02:22]}  Be6 {[%clk 0:02:25]} 14. Qa4 {[%clk 0:02:15]}  Rb4 {[%clk 0:02:14]} 15. Qxc6 {[%clk 0:01:59]}  Rxd4 {[%clk 0:02:11]} 16. Nxd5 {[%clk 0:01:41]}  Bxd5 {[%clk 0:02:03]} 17. Bxd5 {[%clk 0:01:37]}  Rxd5 {[%clk 0:02:04]} 18. Be3 {[%clk 0:01:29]}  a5 {[%clk 0:02:00]} 19. Rab1 {[%clk 0:01:13]}  e6 {[%clk 0:01:53]} 20. b3 {[%clk 0:01:10]}  h5 {[%clk 0:01:27]} 21. h3 {[%clk 0:01:08]}  Qb8 {[%clk 0:01:20]} 22. Red1 {[%clk 0:01:05]}  Rc8 {[%clk 0:01:18]} 23. Qa4 {[%clk 0:01:04]}  Rcd8 {[%clk 0:01:06]} 24. Rxd5 {[%clk 0:01:00]}  Rxd5 {[%clk 0:01:07]} 25. Rc1 {[%clk 0:00:57]}  Qd6 {[%clk 0:01:04]} 26. Qc4 {[%clk 0:00:48]}  Be5 {[%clk 0:01:00]} 27. Qe2 {[%clk 0:00:47]}  Kg7 {[%clk 0:00:53]} 28. Qf3 {[%clk 0:00:32]}  Rd3 {[%clk 0:00:47]} 29. g3 {[%clk 0:00:31]}  Bd4 {[%clk 0:00:24]} 30. Re1 {[%clk 0:00:31]}  Bxe3 {[%clk 0:00:22]} 31. Rxe3 {[%clk 0:00:32]}  Rd2 {[%clk 0:00:18]} 32. a4 {[%clk 0:00:27]}  Rb2 {[%clk 0:00:15]} 33. Kg2 {[%clk 0:00:20]}  Qd4 {[%clk 0:00:14]} 34. g4 {[%clk 0:00:15]}  hxg4 {[%clk 0:00:14]} 35. hxg4 {[%clk 0:00:16]}  Kg8 {[%clk 0:00:11]} 36. Re1 {[%clk 0:00:10]}  Kg7 {[%clk 0:00:10]} 37. Re3 {[%clk 0:00:10]}  Kg8 {[%clk 0:00:10]} 38. Kg3 {[%clk 0:00:11]}  Qd6+ {[%clk 0:00:09]} 39. Kh3 {[%clk 0:00:09]}  Qd4 {[%clk 0:00:09]} 40. Kg2 {[%clk 0:00:09]}  Kg7 {[%clk 0:00:08]} 41. Qg3 {[%clk 0:00:09]}  Qd5+ {[%clk 0:00:08]} 42. Qf3 {[%clk 0:00:06]}  Qd4 {[%clk 0:00:08]} 43. Qg3 {[%clk 0:00:04]}  Qd5+ {[%clk 0:00:09]} 44. Kh2 {[%clk 0:00:05]}  Qd2 {[%clk 0:00:06]} 45. Rf3 {[%clk 0:00:04]}  Qd5 {[%clk 0:00:05]} 46. Qf4 {[%clk 0:00:04]}  f5 {[%clk 0:00:02]} 47. gxf5 {[%clk 0:00:05]}  exf5 {[%clk 0:00:02]} 48. Re3 {[%clk 0:00:03]}  Rxb3 {[%clk 0:00:02]} 49. Qc7+ {[%clk 0:00:03]}  Kh6 {[%clk 0:00:02]} 50. Rxb3 {[%clk 0:00:03]}  Qxb3 {[%clk 0:00:02]} 51. Qxa5 {[%clk 0:00:03]}  Qf3 {[%clk 0:00:02]} 52. Qc5 {[%clk 0:00:02]}  Qf4+ {[%clk 0:00:02]} 53. Kg2 {[%clk 0:00:02]}  Qg4+ {[%clk 0:00:02]} 54. Kf1 {[%clk 0:00:03]}  Qxa4 {[%clk 0:00:03]} 55. Qf8+ {[%clk 0:00:03]}  Kg5 {[%clk 0:00:03]} 56. Qd8+ {[%clk 0:00:03]}  Kh5 {[%clk 0:00:03]} 57. Kg2 {[%clk 0:00:03]}  Qe4+ {[%clk 0:00:03]} 58. Kg1 {[%clk 0:00:03]}  Qg4+ {[%clk 0:00:03]} 59. Kf1 {[%clk 0:00:03]}  Qe4 {[%clk 0:00:04]} 60. Qh8+ {[%clk 0:00:03]}  Kg5 {[%clk 0:00:04]} 61. Kg1 {[%clk 0:00:03]}  Qg4+ {[%clk 0:00:04]} 62. Kf1 {[%clk 0:00:04]}  Qd1+ {[%clk 0:00:05]} 63. Kg2 {[%clk 0:00:05]}  Qd5+ {[%clk 0:00:05]} 64. Kg1 {[%clk 0:00:05]}  Qd1+ {[%clk 0:00:05]} 65. Kh2 {[%clk 0:00:05]}  Qh5+ {[%clk 0:00:05]} 66. Qxh5+ {[%clk 0:00:06]}  Kxh5 {[%clk 0:00:03]} 67. Kg3 {[%clk 0:00:05]}  Kg5 {[%clk 0:00:04]} 68. f4+ {[%clk 0:00:03]}  Kf6 {[%clk 0:00:03]} 69. Kh4 {[%clk 0:00:03]}  Kf7 {[%clk 0:00:03]} 70. Kh3 {[%clk 0:00:01]}  Ke6 {[%clk 0:00:03]} 71. Kg3 {[%clk 0:00:01]}  Kd5 {[%clk 0:00:04]} 72. Kh4 {[%clk 0:00:01]}  Kd4 {[%clk 0:00:03]} 73. Kg5 {[%clk 0:00:02]}  Ke4 {[%clk 0:00:04]} 74. Kxg6 {[%clk 0:00:02]}  Kxf4 {[%clk 0:00:05]} 75. Kh5 {[%clk 0:00:03]}  Kg3 {[%clk 0:00:05]} 0-1


[Site "https://www.chess.com"]

[Event "Titled Tuesday Blitz November 08 Early 2022"]
[White "Ronka, Erik"]
[Black "Matinian, Nikita"]
[WhiteFideId "505080"]
[BlackFideId "24129100"]
[WhiteElo "2264"]
[BlackElo "2422"]
[Result "0-1"]
[Round "08"]
[TimeControl "180+1"]
[Date "2022.11.09"]
[WhiteClock "0:00:06"]
[BlackClock "0:00:51"]

1. e4 {[%clk 0:03:00]}  e5 {[%clk 0:02:44]} 2. Nf3 {[%clk 0:03:01]}  Nc6 {[%clk 0:02:41]} 3. Bb5 {[%clk 0:03:01]}  a6 {[%clk 0:02:41]} 4. Ba4 {[%clk 0:03:01]}  Bc5 {[%clk 0:02:41]} 5. c3 {[%clk 0:02:53]}  Nge7 {[%clk 0:02:40]} 6. O-O {[%clk 0:02:54]}  Ng6 {[%clk 0:02:34]} 7. d4 {[%clk 0:02:53]}  Ba7 {[%clk 0:02:33]} 8. Bg5 {[%clk 0:02:52]}  f6 {[%clk 0:02:33]} 9. Be3 {[%clk 0:02:53]}  O-O {[%clk 0:02:29]} 10. Nbd2 {[%clk 0:02:51]}  Kh8 {[%clk 0:02:29]} 11. Re1 {[%clk 0:02:46]}  d6 {[%clk 0:02:18]} 12. h3 {[%clk 0:02:46]}  Bd7 {[%clk 0:02:17]} 13. Bc2 {[%clk 0:02:41]}  Nf4 {[%clk 0:02:16]} 14. Bxf4 {[%clk 0:02:24]}  exf4 {[%clk 0:02:13]} 15. Nf1 {[%clk 0:02:16]}  Qe8 {[%clk 0:02:07]} 16. Qd2 {[%clk 0:02:08]}  g5 {[%clk 0:02:06]} 17. Rad1 {[%clk 0:01:57]}  Rd8 {[%clk 0:02:06]} 18. b4 {[%clk 0:01:16]}  Rg8 {[%clk 0:01:57]} 19. N1h2 {[%clk 0:01:15]}  h5 {[%clk 0:01:56]} 20. a4 {[%clk 0:01:05]}  Qf8 {[%clk 0:01:53]} 21. b5 {[%clk 0:01:00]}  axb5 {[%clk 0:01:53]} 22. axb5 {[%clk 0:01:01]}  Ne7 {[%clk 0:01:53]} 23. c4 {[%clk 0:00:46]}  g4 {[%clk 0:01:44]} 24. hxg4 {[%clk 0:00:45]}  hxg4 {[%clk 0:01:44]} 25. Qxf4 {[%clk 0:00:33]}  Ng6 {[%clk 0:01:43]} 26. Qe3 {[%clk 0:00:15]}  gxf3 {[%clk 0:01:43]} 27. Nxf3 {[%clk 0:00:16]}  Qg7 {[%clk 0:01:32]} 28. g3 {[%clk 0:00:16]}  Qe7 {[%clk 0:01:24]} 29. Kg2 {[%clk 0:00:15]}  Kg7 {[%clk 0:01:25]} 30. Rh1 {[%clk 0:00:14]}  Rh8 {[%clk 0:01:25]} 31. e5 {[%clk 0:00:09]}  dxe5 {[%clk 0:01:21]} 32. Bxg6 {[%clk 0:00:09]}  Kxg6 {[%clk 0:01:21]} 33. Nh4+ {[%clk 0:00:09]}  Kf7 {[%clk 0:01:21]} 34. Qe4 {[%clk 0:00:08]}  Rdg8 {[%clk 0:01:14]} 35. Nf5 {[%clk 0:00:06]}  Bxf5 {[%clk 0:01:14]} 36. Qxf5 {[%clk 0:00:07]}  Qe6 {[%clk 0:01:09]} 37. Rh7+ {[%clk 0:00:06]}  Rxh7 {[%clk 0:01:10]} 38. Qxh7+ {[%clk 0:00:07]}  Rg7 {[%clk 0:01:10]} 39. Qh5+ {[%clk 0:00:08]}  Ke7 {[%clk 0:01:10]} 40. dxe5 {[%clk 0:00:08]}  fxe5 {[%clk 0:01:08]} 41. Re1 {[%clk 0:00:08]}  Bd4 {[%clk 0:01:07]} 42. Re4 {[%clk 0:00:07]}  Qg6 {[%clk 0:01:01]} 43. Qh4+ {[%clk 0:00:07]}  Kd7 {[%clk 0:01:01]} 44. f3 {[%clk 0:00:06]}  Qg5 {[%clk 0:00:59]} 45. Qh3+ {[%clk 0:00:07]}  Kd6 {[%clk 0:00:59]} 46. Re2 {[%clk 0:00:07]}  Kc5 {[%clk 0:00:58]} 47. g4 {[%clk 0:00:07]}  Qc1 {[%clk 0:00:52]} 48. Qh5 {[%clk 0:00:06]}  Qg1+ {[%clk 0:00:52]} 49. Kh3 {[%clk 0:00:05]}  Qh1+ {[%clk 0:00:51]} 50. Rh2 {[%clk 0:00:06]}  Qxf3+ {[%clk 0:00:51]} 51. Kh4 {[%clk 0:00:06]}  Bf2+ {[%clk 0:00:51]} 0-1


[Site "https://www.chess.com"]

[Event "Titled Tuesday Blitz November 08 Early 2022"]
[White "Roque Sola, Jose Luis"]
[Black "Shapiro, Daniel"]
[WhiteFideId "5120390"]
[BlackFideId "2001780"]
[WhiteElo "2117"]
[BlackElo "2299"]
[Result "0-1"]
[Round "08"]
[TimeControl "180+1"]
[Date "2022.11.09"]
[WhiteClock "0:00:01"]
[BlackClock "0:00:19"]

1. c4 {[%clk 0:03:00]}  e5 {[%clk 0:02:59]} 2. Nc3 {[%clk 0:03:00]}  Nf6 {[%clk 0:02:59]} 3. Nf3 {[%clk 0:03:00]}  Nc6 {[%clk 0:02:58]} 4. g3 {[%clk 0:02:59]}  d5 {[%clk 0:02:57]} 5. cxd5 {[%clk 0:02:59]}  Nxd5 {[%clk 0:02:58]} 6. Nxd5 {[%clk 0:02:59]}  Qxd5 {[%clk 0:02:57]} 7. d3 {[%clk 0:03:00]}  Be7 {[%clk 0:02:51]} 8. Bg2 {[%clk 0:02:59]}  O-O {[%clk 0:02:45]} 9. O-O {[%clk 0:02:58]}  Qd6 {[%clk 0:02:44]} 10. Nd2 {[%clk 0:02:47]}  Be6 {[%clk 0:02:33]} 11. b3 {[%clk 0:02:26]}  f6 {[%clk 0:02:27]} 12. Bb2 {[%clk 0:02:22]}  Qd7 {[%clk 0:02:16]} 13. Re1 {[%clk 0:02:20]}  Bd5 {[%clk 0:02:01]} 14. Bxd5+ {[%clk 0:02:00]}  Qxd5 {[%clk 0:02:00]} 15. Rc1 {[%clk 0:01:54]}  Rad8 {[%clk 0:01:59]} 16. Qc2 {[%clk 0:01:26]}  Rd7 {[%clk 0:01:51]} 17. Qc4 {[%clk 0:01:21]}  Kh8 {[%clk 0:01:31]} 18. Qxd5 {[%clk 0:01:16]}  Rxd5 {[%clk 0:01:32]} 19. Ne4 {[%clk 0:01:12]}  f5 {[%clk 0:01:20]} 20. Nc3 {[%clk 0:01:09]}  Ra5 {[%clk 0:01:20]} 21. Na4 {[%clk 0:01:00]}  Rc8 {[%clk 0:00:54]} 22. Bc3 {[%clk 0:00:54]}  Ra6 {[%clk 0:00:48]} 23. Bd2 {[%clk 0:00:47]}  Nd4 {[%clk 0:00:35]} 24. Be3 {[%clk 0:00:28]}  Ne6 {[%clk 0:00:24]} 25. Rc2 {[%clk 0:00:21]}  f4 {[%clk 0:00:23]} 26. Bc1 {[%clk 0:00:10]}  Bb4 {[%clk 0:00:21]} 27. Bd2 {[%clk 0:00:07]}  Bd6 {[%clk 0:00:21]} 28. Rec1 {[%clk 0:00:06]}  Nd4 {[%clk 0:00:20]} 29. gxf4 {[%clk 0:00:01]}  Nxe2+ {[%clk 0:00:19]} 30. Kf1 {[%clk 0:00:01]}  Nxc1 {[%clk 0:00:19]} 0-1


[Site "https://www.chess.com"]

[Event "Titled Tuesday Blitz November 08 Early 2022"]
[White "Roux, Baptiste"]
[Black "Grot, Blazej"]
[WhiteFideId "36017450"]
[BlackFideId "21835845"]
[WhiteElo "2077"]
[BlackElo "1822"]
[Result "0-1"]
[Round "08"]
[TimeControl "180+1"]
[Date "2022.11.09"]
[WhiteClock "0:00:03"]
[BlackClock "0:00:05"]

1. e4 {[%clk 0:03:00]}  c5 {[%clk 0:03:00]} 2. Nc3 {[%clk 0:02:57]}  e6 {[%clk 0:03:00]} 3. g3 {[%clk 0:02:55]}  Nc6 {[%clk 0:03:00]} 4. Bg2 {[%clk 0:02:56]}  Nge7 {[%clk 0:02:58]} 5. Nge2 {[%clk 0:02:54]}  d5 {[%clk 0:02:57]} 6. exd5 {[%clk 0:02:54]}  exd5 {[%clk 0:02:58]} 7. d4 {[%clk 0:02:47]}  Bg4 {[%clk 0:02:57]} 8. dxc5 {[%clk 0:02:45]}  d4 {[%clk 0:02:56]} 9. Ne4 {[%clk 0:02:41]}  Ng6 {[%clk 0:02:30]} 10. h3 {[%clk 0:02:34]}  Bf5 {[%clk 0:02:29]} 11. O-O {[%clk 0:02:30]}  Bxe4 {[%clk 0:02:24]} 12. Bxe4 {[%clk 0:02:29]}  Bxc5 {[%clk 0:02:25]} 13. a3 {[%clk 0:02:26]}  O-O {[%clk 0:02:24]} 14. b4 {[%clk 0:02:26]}  Bb6 {[%clk 0:02:24]} 15. Bb2 {[%clk 0:02:26]}  Nge5 {[%clk 0:02:20]} 16. b5 {[%clk 0:02:10]}  Na5 {[%clk 0:02:08]} 17. Bxd4 {[%clk 0:02:06]}  Bxd4 {[%clk 0:02:07]} 18. Qxd4 {[%clk 0:02:03]}  Qe7 {[%clk 0:02:04]} 19. Qb4 {[%clk 0:01:57]}  Qc7 {[%clk 0:01:55]} 20. Nf4 {[%clk 0:01:47]}  Nac4 {[%clk 0:01:52]} 21. Rfd1 {[%clk 0:01:35]}  Rad8 {[%clk 0:01:50]} 22. Nd5 {[%clk 0:01:33]}  Qb8 {[%clk 0:01:44]} 23. f4 {[%clk 0:01:18]}  Nb6 {[%clk 0:00:54]} 24. Nxb6 {[%clk 0:01:11]}  axb6 {[%clk 0:00:52]} 25. fxe5 {[%clk 0:01:10]}  Qxe5 {[%clk 0:00:52]} 26. Kh2 {[%clk 0:01:03]}  f5 {[%clk 0:00:43]} 27. Bg2 {[%clk 0:00:57]}  Rxd1 {[%clk 0:00:40]} 28. Rxd1 {[%clk 0:00:56]}  f4 {[%clk 0:00:40]} 29. Qc4+ {[%clk 0:00:47]}  Kh8 {[%clk 0:00:37]} 30. gxf4 {[%clk 0:00:45]}  Rxf4 {[%clk 0:00:36]} 31. Kh1 {[%clk 0:00:23]}  h5 {[%clk 0:00:25]} 32. Rd8+ {[%clk 0:00:22]}  Kh7 {[%clk 0:00:24]} 33. Qg8+ {[%clk 0:00:20]}  Kh6 {[%clk 0:00:21]} 34. Qh8+ {[%clk 0:00:18]}  Kg6 {[%clk 0:00:21]} 35. Rd1 {[%clk 0:00:14]}  Rf2 {[%clk 0:00:17]} 36. Qc8 {[%clk 0:00:06]}  Rxg2 {[%clk 0:00:16]} 37. Kxg2 {[%clk 0:00:06]}  Qe2+ {[%clk 0:00:16]} 38. Kg3 {[%clk 0:00:07]}  Qxd1 {[%clk 0:00:16]} 39. Qe6+ {[%clk 0:00:08]}  Kh7 {[%clk 0:00:15]} 40. Qe4+ {[%clk 0:00:08]}  Kh6 {[%clk 0:00:14]} 41. Qf4+ {[%clk 0:00:06]}  g5 {[%clk 0:00:14]} 42. Qf6+ {[%clk 0:00:06]}  Kh7 {[%clk 0:00:14]} 43. Qe7+ {[%clk 0:00:07]}  Kh6 {[%clk 0:00:13]} 44. Qxb7 {[%clk 0:00:06]}  Qe1+ {[%clk 0:00:11]} 45. Kg2 {[%clk 0:00:06]}  Qe2+ {[%clk 0:00:11]} 46. Kg3 {[%clk 0:00:06]}  Qe3+ {[%clk 0:00:12]} 47. Qf3 {[%clk 0:00:07]}  Qe5+ {[%clk 0:00:11]} 48. Kg2 {[%clk 0:00:07]}  Qxb5 {[%clk 0:00:11]} 49. Qf6+ {[%clk 0:00:07]}  Kh7 {[%clk 0:00:11]} 50. c3 {[%clk 0:00:07]}  Qe2+ {[%clk 0:00:10]} 51. Qf2 {[%clk 0:00:06]}  Qe4+ {[%clk 0:00:10]} 52. Kg1 {[%clk 0:00:07]}  Qb1+ {[%clk 0:00:09]} 53. Kh2 {[%clk 0:00:08]}  Qb5 {[%clk 0:00:08]} 54. Qf7+ {[%clk 0:00:08]}  Kh6 {[%clk 0:00:08]} 55. Qf6+ {[%clk 0:00:08]}  Kh7 {[%clk 0:00:08]} 56. a4 {[%clk 0:00:08]}  Qe2+ {[%clk 0:00:07]} 57. Kg1 {[%clk 0:00:07]}  Qe1+ {[%clk 0:00:07]} 58. Qf1 {[%clk 0:00:06]}  Qe3+ {[%clk 0:00:07]} 59. Qf2 {[%clk 0:00:06]}  Qxc3 {[%clk 0:00:07]} 60. Qxb6 {[%clk 0:00:06]}  Qxh3 {[%clk 0:00:06]} 61. a5 {[%clk 0:00:05]}  Qg3+ {[%clk 0:00:06]} 62. Kf1 {[%clk 0:00:04]}  h4 {[%clk 0:00:06]} 63. a6 {[%clk 0:00:04]}  h3 {[%clk 0:00:06]} 64. a7 {[%clk 0:00:04]}  Qg2+ {[%clk 0:00:06]} 65. Ke1 {[%clk 0:00:03]}  h2 {[%clk 0:00:06]} 66. Qb7+ {[%clk 0:00:03]}  Qxb7 {[%clk 0:00:05]} 0-1


[Site "https://www.chess.com"]

[Event "Titled Tuesday Blitz November 08 Early 2022"]
[White "Sailer, Mike"]
[Black "Santos Flores, Alberto"]
[WhiteFideId "2012901"]
[BlackFideId "3601234"]
[WhiteElo "2109"]
[BlackElo "2235"]
[Result "0-1"]
[Round "08"]
[TimeControl "180+1"]
[Date "2022.11.09"]
[WhiteClock "0:00:02"]
[BlackClock "0:00:52"]

1. Nf3 {[%clk 0:03:00]}  c5 {[%clk 0:02:55]} 2. c4 {[%clk 0:03:00]}  g6 {[%clk 0:02:55]} 3. g3 {[%clk 0:03:01]}  Bg7 {[%clk 0:02:54]} 4. Bg2 {[%clk 0:03:02]}  Nc6 {[%clk 0:02:54]} 5. O-O {[%clk 0:03:00]}  e6 {[%clk 0:02:54]} 6. d3 {[%clk 0:02:41]}  Nge7 {[%clk 0:02:53]} 7. Nc3 {[%clk 0:02:36]}  O-O {[%clk 0:02:52]} 8. Bg5 {[%clk 0:02:36]}  h6 {[%clk 0:02:49]} 9. Be3 {[%clk 0:02:36]}  b6 {[%clk 0:02:47]} 10. d4 {[%clk 0:02:31]}  Nf5 {[%clk 0:02:45]} 11. dxc5 {[%clk 0:02:21]}  Nxe3 {[%clk 0:02:45]} 12. fxe3 {[%clk 0:02:22]}  bxc5 {[%clk 0:02:45]} 13. e4 {[%clk 0:02:09]}  Rb8 {[%clk 0:02:39]} 14. Rb1 {[%clk 0:02:07]}  Ba6 {[%clk 0:02:27]} 15. Qa4 {[%clk 0:02:01]}  Qa5 {[%clk 0:02:26]} 16. Qd1 {[%clk 0:01:45]}  Rfd8 {[%clk 0:02:16]} 17. Nb5 {[%clk 0:01:31]}  Bxb5 {[%clk 0:02:13]} 18. cxb5 {[%clk 0:01:32]}  Qxb5 {[%clk 0:02:12]} 19. e5 {[%clk 0:01:28]}  Nxe5 {[%clk 0:02:06]} 20. Nxe5 {[%clk 0:01:28]}  Bxe5 {[%clk 0:02:07]} 21. Qd2 {[%clk 0:01:21]}  Bg7 {[%clk 0:01:55]} 22. b3 {[%clk 0:01:20]}  d5 {[%clk 0:01:54]} 23. Qf4 {[%clk 0:01:07]}  Rb7 {[%clk 0:01:53]} 24. e4 {[%clk 0:01:04]}  Qb4 {[%clk 0:01:43]} 25. Rbd1 {[%clk 0:00:47]}  Rbd7 {[%clk 0:01:39]} 26. h4 {[%clk 0:00:35]}  dxe4 {[%clk 0:01:23]} 27. Rxd7 {[%clk 0:00:32]}  Rxd7 {[%clk 0:01:24]} 28. h5 {[%clk 0:00:21]}  g5 {[%clk 0:01:23]} 29. Qxe4 {[%clk 0:00:21]}  Qxe4 {[%clk 0:01:19]} 30. Bxe4 {[%clk 0:00:22]}  Rd2 {[%clk 0:01:19]} 31. a4 {[%clk 0:00:16]}  f5 {[%clk 0:01:15]} 32. Bc6 {[%clk 0:00:13]}  Kf7 {[%clk 0:01:08]} 33. Bb5 {[%clk 0:00:13]}  Bd4+ {[%clk 0:01:05]} 34. Kh1 {[%clk 0:00:13]}  Kf6 {[%clk 0:01:05]} 35. Bc4 {[%clk 0:00:12]}  g4 {[%clk 0:01:01]} 36. Re1 {[%clk 0:00:10]}  e5 {[%clk 0:01:00]} 37. Rf1 {[%clk 0:00:09]}  Kg5 {[%clk 0:00:59]} 38. Be6 {[%clk 0:00:08]}  f4 {[%clk 0:00:58]} 39. gxf4+ {[%clk 0:00:08]}  exf4 {[%clk 0:00:59]} 40. Bf7 {[%clk 0:00:04]}  f3 {[%clk 0:00:58]} 41. Bg6 {[%clk 0:00:02]}  Kf4 {[%clk 0:00:54]} 42. Re1 {[%clk 0:00:02]}  Kg3 {[%clk 0:00:52]} 0-1


[Site "https://www.chess.com"]

[Event "Titled Tuesday Blitz November 08 Early 2022"]
[White "Salman, Pavel"]
[Black "Mazzilli, Piero"]
[WhiteFideId "24153753"]
[BlackFideId "807087"]
[WhiteElo "2187"]
[BlackElo "2294"]
[Result "1-0"]
[Round "08"]
[TimeControl "180+1"]
[Date "2022.11.09"]
[WhiteClock "0:00:26"]
[BlackClock "0:00:06"]

1. d4 {[%clk 0:03:00]}  d5 {[%clk 0:02:59]} 2. Nc3 {[%clk 0:02:59]}  e6 {[%clk 0:02:57]} 3. Bf4 {[%clk 0:02:59]}  Nf6 {[%clk 0:02:56]} 4. Nb5 {[%clk 0:02:59]}  Na6 {[%clk 0:02:56]} 5. e3 {[%clk 0:02:59]}  c6 {[%clk 0:02:52]} 6. Nc3 {[%clk 0:02:59]}  Bd6 {[%clk 0:02:46]} 7. Bxa6 {[%clk 0:02:58]}  bxa6 {[%clk 0:02:46]} 8. Nge2 {[%clk 0:02:59]}  a5 {[%clk 0:02:42]} 9. Qd3 {[%clk 0:02:56]}  Rb8 {[%clk 0:02:40]} 10. Na4 {[%clk 0:02:48]}  Rb4 {[%clk 0:02:26]} 11. b3 {[%clk 0:02:48]}  Bxf4 {[%clk 0:02:19]} 12. Nxf4 {[%clk 0:02:46]}  Ne4 {[%clk 0:02:16]} 13. O-O {[%clk 0:02:35]}  O-O {[%clk 0:02:08]} 14. f3 {[%clk 0:02:31]}  Nd6 {[%clk 0:02:05]} 15. Nc5 {[%clk 0:02:29]}  Nb7 {[%clk 0:01:53]} 16. Na4 {[%clk 0:02:19]}  Nd6 {[%clk 0:01:15]} 17. c3 {[%clk 0:02:18]}  Rb5 {[%clk 0:01:08]} 18. e4 {[%clk 0:02:07]}  Ba6 {[%clk 0:01:05]} 19. Rf2 {[%clk 0:01:48]}  Qh4 {[%clk 0:00:39]} 20. Qe3 {[%clk 0:01:45]}  dxe4 {[%clk 0:00:32]} 21. fxe4 {[%clk 0:01:46]}  Rg5 {[%clk 0:00:32]} 22. g3 {[%clk 0:01:43]}  Qh6 {[%clk 0:00:24]} 23. Nc5 {[%clk 0:01:38]}  Bc8 {[%clk 0:00:22]} 24. e5 {[%clk 0:01:28]}  Nf5 {[%clk 0:00:22]} 25. Qf3 {[%clk 0:01:21]}  f6 {[%clk 0:00:20]} 26. Ne4 {[%clk 0:01:18]}  Nh4 {[%clk 0:00:15]} 27. Qe2 {[%clk 0:01:09]}  fxe5 {[%clk 0:00:13]} 28. Nxg5 {[%clk 0:01:07]}  exf4 {[%clk 0:00:13]} 29. gxh4 {[%clk 0:01:05]}  Qxh4 {[%clk 0:00:13]} 30. Nf3 {[%clk 0:01:03]}  Qh3 {[%clk 0:00:11]} 31. Rg2 {[%clk 0:00:55]}  c5 {[%clk 0:00:11]} 32. Rf1 {[%clk 0:00:52]}  Bb7 {[%clk 0:00:09]} 33. dxc5 {[%clk 0:00:42]}  Kh8 {[%clk 0:00:09]} 34. Ng5 {[%clk 0:00:26]}  Qxg2+ {[%clk 0:00:09]} 35. Qxg2 {[%clk 0:00:27]}  Bxg2 {[%clk 0:00:10]} 36. Kxg2 {[%clk 0:00:27]}  Rf5 {[%clk 0:00:07]} 37. Nxe6 {[%clk 0:00:27]}  Re5 {[%clk 0:00:07]} 38. Rxf4 {[%clk 0:00:27]}  g5 {[%clk 0:00:06]} 39. Rf8# {[%clk 0:00:26]} 1-0


[Site "https://www.chess.com"]

[Event "Titled Tuesday Blitz November 08 Early 2022"]
[White "Schmidt, Tobias"]
[Black "Carbone, Diego"]
[WhiteFideId "1271683"]
[BlackFideId "3002179"]
[WhiteElo "2328"]
[BlackElo "2265"]
[Result "1-0"]
[Round "08"]
[TimeControl "180+1"]
[Date "2022.11.09"]
[WhiteClock "0:00:18"]
[BlackClock "0:00:03"]

1. d3 {[%clk 0:03:00]}  d5 {[%clk 0:02:59]} 2. Nf3 {[%clk 0:02:57]}  Nf6 {[%clk 0:02:58]} 3. g3 {[%clk 0:02:56]}  c5 {[%clk 0:02:57]} 4. Bg2 {[%clk 0:02:55]}  Nc6 {[%clk 0:02:58]} 5. O-O {[%clk 0:02:54]}  g6 {[%clk 0:02:58]} 6. Nbd2 {[%clk 0:02:53]}  Bg7 {[%clk 0:02:59]} 7. e4 {[%clk 0:02:52]}  d4 {[%clk 0:02:58]} 8. a4 {[%clk 0:02:48]}  O-O {[%clk 0:02:58]} 9. Nc4 {[%clk 0:02:42]}  Ne8 {[%clk 0:02:57]} 10. a5 {[%clk 0:02:32]}  e5 {[%clk 0:02:56]} 11. Qe2 {[%clk 0:02:24]}  Be6 {[%clk 0:02:55]} 12. Bd2 {[%clk 0:02:20]}  Nd6 {[%clk 0:02:51]} 13. Ra4 {[%clk 0:02:01]}  Nxc4 {[%clk 0:02:36]} 14. dxc4 {[%clk 0:02:02]}  Qd7 {[%clk 0:02:36]} 15. Rfa1 {[%clk 0:01:57]}  f6 {[%clk 0:02:32]} 16. b3 {[%clk 0:01:55]}  Rad8 {[%clk 0:02:28]} 17. Ne1 {[%clk 0:01:51]}  Bh3 {[%clk 0:02:18]} 18. Nd3 {[%clk 0:01:48]}  Bxg2 {[%clk 0:02:09]} 19. Kxg2 {[%clk 0:01:49]}  Qd6 {[%clk 0:02:05]} 20. h4 {[%clk 0:01:46]}  f5 {[%clk 0:02:00]} 21. h5 {[%clk 0:01:37]}  Bf6 {[%clk 0:01:57]} 22. hxg6 {[%clk 0:01:31]}  hxg6 {[%clk 0:01:58]} 23. Rh1 {[%clk 0:01:30]}  Bg7 {[%clk 0:01:51]} 24. Raa1 {[%clk 0:01:26]}  f4 {[%clk 0:01:42]} 25. f3 {[%clk 0:01:14]}  fxg3 {[%clk 0:01:36]} 26. Rh3 {[%clk 0:01:12]}  Rf7 {[%clk 0:01:16]} 27. Rxg3 {[%clk 0:01:11]}  Rdf8 {[%clk 0:01:17]} 28. Rg1 {[%clk 0:01:09]}  Ne7 {[%clk 0:01:12]} 29. Kh2 {[%clk 0:01:07]}  Bf6 {[%clk 0:01:05]} 30. Bh6 {[%clk 0:01:05]}  Rh7 {[%clk 0:01:04]} 31. Rh3 {[%clk 0:01:04]}  Rff7 {[%clk 0:00:59]} 32. Rg4 {[%clk 0:01:03]}  b6 {[%clk 0:00:56]} 33. a6 {[%clk 0:00:55]}  Qe6 {[%clk 0:00:52]} 34. Qg2 {[%clk 0:00:54]}  Bg7 {[%clk 0:00:29]} 35. Bg5 {[%clk 0:00:48]}  Rxh3+ {[%clk 0:00:23]} 36. Qxh3 {[%clk 0:00:49]}  Nc6 {[%clk 0:00:23]} 37. Qg2 {[%clk 0:00:43]}  Nb4 {[%clk 0:00:17]} 38. Nxb4 {[%clk 0:00:32]}  cxb4 {[%clk 0:00:18]} 39. Bd2 {[%clk 0:00:32]}  Kh7 {[%clk 0:00:09]} 40. Qh3+ {[%clk 0:00:28]}  Kg8 {[%clk 0:00:09]} 41. Qg2 {[%clk 0:00:25]}  Kh7 {[%clk 0:00:09]} 42. Bxb4 {[%clk 0:00:25]}  Rf4 {[%clk 0:00:07]} 43. Qh3+ {[%clk 0:00:21]}  Bh6 {[%clk 0:00:05]} 44. Rxf4 {[%clk 0:00:19]}  Qxh3+ {[%clk 0:00:06]} 45. Kxh3 {[%clk 0:00:20]}  Bxf4 {[%clk 0:00:06]} 46. Kg4 {[%clk 0:00:19]}  Kg7 {[%clk 0:00:05]} 47. Bd6 {[%clk 0:00:19]}  Kf6 {[%clk 0:00:02]} 48. Bb8 {[%clk 0:00:19]}  d3 {[%clk 0:00:03]} 49. cxd3 {[%clk 0:00:18]}  Be3 {[%clk 0:00:03]} 50. Bxa7 {[%clk 0:00:18]}  g5 {[%clk 0:00:03]} 51. Bb8 {[%clk 0:00:18]}  b5 {[%clk 0:00:03]} 52. cxb5 {[%clk 0:00:18]} 1-0


[Site "https://www.chess.com"]